fUSD/lending_fUSD_20260226
["ID","MTS","AMOUNT","RATE_DAILY","PERIOD"]
[406697634,1772094641694,-1680.0,0.00010293,2]
[406697636,1772094641703,-5531.0,0.000103,3]
[406697638,1772094641712,-151.0,0.000103,2]
[406697639,1772094641721,-250.308914,0.000103,2]
[406697641,1772094641731,-151.0,0.000103,2]
[406697644,1772094641740,-204.036797,0.000103,2]
[406697646,1772094641750,-204.036797,0.000103,2]
[406697647,1772094641759,-204.036797,0.000103,2]
[406697649,1772094641767,-204.036797,0.000103,2]
[406697651,1772094641776,-359.0,0.000103,2]
[406697654,1772094641787,-500.0,0.000103,2]
[406697656,1772094641796,-500.0,0.000103,2]
[406697658,1772094641806,-500.0,0.000103,2]
[406697659,1772094641815,-500.0,0.000103,2]
[406697661,1772094641824,-500.0,0.000103,2]
[406697663,1772094641834,-500.0,0.000103,2]
[406697665,1772094641843,-500.0,0.000103,2]
[406697667,1772094641853,-500.0,0.000103,2]
[406697669,1772094641862,-500.0,0.000103,2]
[406697672,1772094641871,-500.0,0.000103,2]
[406697673,1772094641881,-500.0,0.000103,2]
[406697675,1772094641891,-500.0,0.000103,2]
[406697677,1772094641900,-700.0,0.000103,2]
[406697679,1772094641908,-500.0,0.000103,2]
[406697681,1772094641918,-670.58826538,0.000103,2]
[406697683,1772094641927,-500.0,0.000103,2]
[406697685,1772094641936,-500.0,0.000103,2]
[406697687,1772094641945,-552.73407066,0.000103,2]
[406697689,1772094641955,-500.0,0.000103,2]
[406697691,1772094641964,-500.0,0.000103,2]
[406697693,1772094641973,-500.0,0.000103,2]
[406697695,1772094641983,-500.0,0.000103,2]
[406697697,1772094641993,-739.15013038,0.000103,2]
[406697699,1772094642003,-615.5072787,0.000103,2]
[406697702,1772094642019,-619.49571842,0.000103,2]
[406697703,1772094642029,-500.0,0.000103,2]
[406697705,1772094642038,-507.70307174,0.000103,2]
[406697707,1772094642047,-585.91467153,0.000103,2]
[406697709,1772094642057,-500.0,0.000103,2]
[406697712,1772094642066,-500.0,0.000103,2]
[406697713,1772094642076,-500.0,0.000103,2]
[406697716,1772094642086,-500.0,0.000103,2]
[406697718,1772094642095,-500.0,0.000103,2]
[406697720,1772094642105,-500.0,0.000103,2]
[406697722,1772094642114,-500.0,0.000103,2]
[406697724,1772094642123,-500.0,0.000103,2]
[406697726,1772094642133,-500.0,0.000103,2]
[406697727,1772094642143,-993.25770071,0.000103,2]
[406697729,1772094642152,-501.06724534,0.000103,2]
[406697731,1772094642162,-500.0,0.000103,2]
[406697733,1772094642171,-500.0,0.000103,2]
[406697735,1772094642180,-500.0,0.000103,2]
[406697737,1772094642189,-500.0,0.000103,2]
[406697739,1772094642198,-841.12614191,0.000103,2]
[406697741,1772094642208,-500.0,0.000103,2]
[406697743,1772094642217,-801.52125794,0.000103,2]
[406697745,1772094642227,-500.0,0.000103,2]
[406697747,1772094642239,-500.0,0.000103,2]
[406697749,1772094642249,-500.0,0.000103,2]
[406697751,1772094642258,-500.0,0.000103,2]
[406697752,1772094642267,-500.0,0.000103,2]
[406697754,1772094642277,-500.0,0.000103,2]
[406697756,1772094642287,-500.0,0.000103,2]
[406697757,1772094642298,-789.45931659,0.000103,2]
[406697758,1772094642309,-572.33914268,0.000103,2]
[406697759,1772094642320,-518.88437853,0.000103,2]
[406697760,1772094642329,-500.0,0.000103,2]
[406697761,1772094642339,-739.84545781,0.000103,2]
[406697762,1772094642348,-500.0,0.000103,2]
[406697763,1772094642358,-500.0,0.000103,2]
[406697766,1772094642462,-500.0,0.000103,2]
[406697767,1772094642473,-790.48720054,0.000103,2]
[406697768,1772094642485,-255.0,0.00010345,2]
[406697769,1772094642495,-166.66,0.00010377,2]
[406697770,1772094642504,-1176.11206,0.000104,2]
[406697771,1772094642514,-151.0,0.0001043,2]
[406697772,1772094642523,-295.632129,0.0001043,2]
[406697773,1772094642533,-295.632129,0.0001043,2]
[406697774,1772094642543,-295.632129,0.0001043,2]
[406697775,1772094642552,-295.632129,0.0001043,2]
[406697776,1772094642561,-238.98825351,0.00010495,2]
[406697777,1772094642571,-5531.0,0.000105,5]
[406697778,1772094642580,-1407.69568139,0.00010574,2]
[406697779,1772094642590,-1176.11207,0.000106,2]
[406697780,1772094642600,-151.0,0.00010618,2]
[406697781,1772094642610,-151.0,0.00010618,2]
[406697784,1772094642620,-204.036797,0.00010618,2]
[406697785,1772094642630,-204.036797,0.00010618,2]
[406697787,1772094642640,-204.036797,0.00010618,2]
[406697788,1772094642650,-204.036797,0.00010618,2]
[406697789,1772094642660,-350.0,0.00010665,2]
[406697790,1772094642669,-166.66,0.00010689,2]
[406697791,1772094642679,-151.0,0.00010705,2]
[406697792,1772094642688,-151.0,0.00010705,2]
[406697793,1772094642698,-204.036797,0.00010705,2]
[406697794,1772094642708,-204.036797,0.00010705,2]
[406697795,1772094642718,-204.036797,0.00010705,2]
[406697796,1772094642728,-204.036793,0.00010705,2]
[406697797,1772094642737,-295.632129,0.00010705,2]
[406697798,1772094642746,-295.632129,0.00010705,2]
[406697799,1772094642756,-295.632129,0.00010705,2]
[406697800,1772094642765,-295.632129,0.00010705,2]
[406697801,1772094642775,-145779.5353448,0.00010705,2]
[406697802,1772094642784,-26929.2596008,0.00010705,2]
[406697803,1772094642795,-5250.4802385,0.00010705,2]
[406697804,1772094642804,-81212.1220855,0.00010705,2]
[406697805,1772094642814,-51713.5140706,0.00010705,2]
[406697806,1772094642824,-350.0,0.00010732,2]
[406697807,1772094642835,-350.0,0.00010746,2]
[406697808,1772094642845,-1176.11207,0.000108,2]
[406697809,1772094642854,-500.06072906,0.00010829,2]
[406697810,1772094642864,-164.76814521,0.00010829,2]
[406697811,1772094642874,-500.0,0.00010829,2]
[406697812,1772094642884,-500.08514565,0.00010829,2]
[406697813,1772094642894,-165.39582799,0.00010829,2]
[406697814,1772094642904,-500.93369528,0.00010829,2]
[406697815,1772094642913,-500.0,0.00010829,2]
[406697816,1772094642923,-500.08820078,0.00010829,2]
[406697817,1772094642933,-500.09057479,0.00010829,2]
[406697818,1772094642942,-502.12113393,0.00010829,2]
[406697819,1772094642952,-500.0,0.00010829,2]
[406697820,1772094642962,-500.23170611,0.00010829,2]
[406697821,1772094642971,-167.01035166,0.00010829,2]
[406697822,1772094642981,-501.10602996,0.00010829,2]
[406697823,1772094642991,-500.22029316,0.00010829,2]
[406697824,1772094643000,-500.08836173,0.00010829,2]
[406697825,1772094643010,-500.51046148,0.00010829,2]
[406697826,1772094643019,-384.74874007,0.00010829,2]
[406697827,1772094643029,-504.35563358,0.00010829,2]
[406697828,1772094643039,-500.0,0.00010829,2]
[406697829,1772094643049,-503.65630959,0.00010829,2]
[406697830,1772094643058,-500.78794822,0.00010829,2]
[406697831,1772094643068,-500.0,0.00010829,2]
[406697832,1772094643078,-500.0,0.00010829,2]
[406697833,1772094643087,-500.49462905,0.00010829,2]
[406697834,1772094643097,-501.08752004,0.00010829,2]
[406697835,1772094643106,-500.54399675,0.00010829,2]
[406697836,1772094643116,-500.65480064,0.00010829,2]
[406697837,1772094643128,-500.82940591,0.00010829,2]
[406697838,1772094643138,-500.35476921,0.00010829,2]
[406697839,1772094643148,-500.0,0.00010829,2]
[406697840,1772094643157,-240.05255331,0.00010829,2]
[406697841,1772094643166,-500.0,0.00010829,2]
[406697842,1772094643176,-500.95701525,0.00010829,2]
[406697843,1772094643185,-503.76454866,0.00010829,2]
[406697844,1772094643194,-228.274873,0.00010907,2]
[406697845,1772094643204,-1227.9163597,0.00010934,2]
[406697846,1772094643214,-200.0,0.00010959,2]
[406697847,1772094643224,-3643.09,0.00010959,2]
[406697848,1772094643235,-14929.04,0.00010959,2]
[406697849,1772094643247,-166.66,0.00010959,2]
[406697850,1772094643256,-150.0,0.00010959,2]
[406697851,1772094643266,-166.29,0.00010959,2]
[406697852,1772094643277,-151.0,0.00010959,2]
[406697853,1772094643287,-151.0,0.00010959,2]
[406697854,1772094643296,-151.0,0.00010959,2]
[406697855,1772094643307,-151.0,0.00010959,2]
[406697856,1772094643317,-152.838506,0.00010959,2]
[406697857,1772094643327,-155.0,0.00010999,2]
[406697858,1772094643336,-1176.11206,0.00011,2]
[406697859,1772094643345,-166.66,0.00011,2]
[406697860,1772094643356,-166.66,0.00011068,2]
[406697861,1772094643365,-17042.58599923,0.00011099,2]
[406697862,1772094643374,-17042.58599919,0.00011099,2]
[406697863,1772094643383,-17042.58599919,0.00011099,2]
[406697864,1772094643392,-25390.84992934,0.00011099,2]
[406697865,1772094643401,-25390.84992926,0.00011099,2]
[406697866,1772094643410,-25390.84992926,0.00011099,2]
[406697867,1772094643419,-25390.84992926,0.00011099,2]
[406697869,1772094643429,-25390.84992926,0.00011099,2]
[406697871,1772094643438,-25390.84992926,0.00011099,2]
[406697873,1772094643447,-25390.84992926,0.00011099,2]
[406697875,1772094643456,-25390.84992926,0.00011099,2]
[406697876,1772094643466,-1108.55871083,0.00011099,2]
[406697877,1772094643480,-2019.91513355,0.00011099,2]
[406697907,1772094841488,591.1,9e-05,10]
[406698014,1772095831681,-325.89,8.374e-05,2]
[406698015,1772095831691,-220.0,8.374e-05,2]
[406698016,1772095831700,-500.0,8.538e-05,2]
[406698017,1772095831709,-154.11,8.582e-05,2]
[406698018,1772095831720,-40.89,8.582e-05,2]
[406698019,1772095831729,-546.05,8.626e-05,2]
[406698020,1772095831741,-500.0,8.626e-05,2]
[406698021,1772095831753,-453.95,8.626e-05,2]
[406698022,1772095831762,-195.0,8.876e-05,2]
[406698023,1772095831772,-195.0,8.876e-05,2]
[406698024,1772095831781,-195.0,8.876e-05,2]
[406698025,1772095831790,-1046.936,9.031e-05,2]
[406698026,1772095831799,-300.0,9.099e-05,2]
[406698027,1772095831808,-300.0,9.099e-05,2]
[406698028,1772095831818,-1200.0,9.099e-05,2]
[406698029,1772095831827,-1041.81730397,9.1e-05,2]
[406698030,1772095831836,-82.02285771,9.1e-05,2]
[406698031,1772095831848,-555.59417147,9.1e-05,2]
[406698032,1772095831860,-1286.19224162,9.1e-05,2]
[406698033,1772095831870,-342.79204806,9.1e-05,2]
[406698034,1772095831886,-574.96772353,9.1e-05,2]
[406698035,1772095832029,-3569.21008894,9.104e-05,2]
[406698036,1772095832039,-230394.6249965,9.114e-05,2]
[406698037,1772095832051,-537.97245266,9.114e-05,2]
[406698038,1772095832067,-1146.43337587,9.114e-05,2]
[406698041,1772095837712,-6543.9,9.114e-05,2]
[406698042,1772095837765,-572.36301791,9.114e-05,2]
[406698043,1772095837777,-956.1785563,9.114e-05,2]
[406698044,1772095837873,-428.69453177,9.114e-05,2]
[406698045,1772095837926,-680.80757,9.114e-05,2]
[406698051,1772095840031,-1917.95021935,9.114e-05,2]
[406698052,1772095840083,-5523.86793438,9.114e-05,2]
[406698053,1772095840097,-789.47421459,9.114e-05,2]
[406698054,1772095840109,-442.2986497,9.114e-05,2]
[406698061,1772095843129,-469145.39176837,9.114e-05,2]
[406698062,1772095843142,-558.0,9.114e-05,2]
[406698267,1772095845646,-1801.12700213,9.114e-05,2]
[406698274,1772095845699,-330.0,9.114e-05,2]
[406698400,1772096287237,3500.0,8.7e-05,3]
[406698401,1772096289626,7000.0,8.8e-05,3]
[406698402,1772096291914,10500.0,8.9e-05,3]
[406698403,1772096293749,14100.0,9e-05,3]
[406698427,1772096835170,1700.0,8.7e-05,3]
[406698428,1772096837265,3500.0,8.8e-05,3]
[406698429,1772096839841,5300.0,8.9e-05,3]
[406698430,1772096841467,7000.0,9e-05,3]
[406698584,1772097031777,-1363.99,8.072e-05,2]
[406698586,1772097031787,-218.0,8.072e-05,2]
[406698587,1772097031796,-145.41434752,8.219e-05,2]
[406698591,1772097031831,-20.87565248,8.219e-05,2]
[406698593,1772097031840,-195.0,8.237e-05,2]
[406698594,1772097031848,-51.22284486,8.257e-05,2]
[406698595,1772097031885,-143.77715514,8.257e-05,2]
[406698596,1772097031894,-351.543305,8.268e-05,2]
[406698597,1772097031903,-867.85457171,8.319e-05,2]
[406698598,1772097031943,-132.14542829,8.319e-05,2]
[406698599,1772097031952,-166.66,8.471e-05,2]
[406698600,1772097031962,-500.0,8.592e-05,2]
[406698601,1772097031972,-1200.0,8.678e-05,2]
[406698602,1772097031981,-4364.0362739,8.679e-05,2]
[406698603,1772097031989,-1059.0,8.703e-05,2]
[406698605,1772097031998,-1895.0,8.717e-05,2]
[406698607,1772097032008,-1175.0,8.721e-05,2]
[406698608,1772097032017,-459.0,8.735e-05,2]
[406698609,1772097032027,-166.66,8.75e-05,2]
[406698610,1772097032036,-182.0,8.793e-05,2]
[406698611,1772097032045,-379.0,8.793e-05,2]
[406698612,1772097032054,-2500.0,8.812e-05,2]
[406698613,1772097032063,-1235.2464,8.812e-05,2]
[406698614,1772097032072,-68894.4394,8.812e-05,2]
[406698615,1772097032084,-1852.42,8.851e-05,2]
[406698616,1772097032093,-150.0,8.863e-05,2]
[406698617,1772097032102,-299.99,8.864e-05,2]
[406698618,1772097032111,-9999.99,8.864e-05,2]
[406698619,1772097032120,-9999.99,8.864e-05,2]
[406698620,1772097032129,-1543.45,8.864e-05,2]
[406698621,1772097032138,-9999.99,8.864e-05,2]
[406698622,1772097032148,-150.99,8.864e-05,2]
[406698623,1772097032157,-1474.62,8.864e-05,2]
[406698624,1772097032166,-29148.29,8.864e-05,2]
[406698625,1772097032175,-349.96,8.864e-05,2]
[406698627,1772097032184,-487.62,8.864e-05,2]
[406698628,1772097032193,-7142.49,8.864e-05,2]
[406698630,1772097032202,-14049.98,8.864e-05,2]
[406698632,1772097032211,-150.99,8.864e-05,2]
[406698634,1772097032220,-3709.73,8.864e-05,2]
[406698636,1772097032229,-311.77,8.864e-05,2]
[406698638,1772097032238,-2987.33,8.864e-05,2]
[406698640,1772097032246,-197135.42,8.864e-05,2]
[406698642,1772097032255,-5997.0003,8.877e-05,2]
[406698643,1772097032264,-195.0,8.879e-05,2]
[406698644,1772097032273,-195.0,8.879e-05,2]
[406698645,1772097032283,-195.0,8.879e-05,2]
[406698646,1772097032292,-2500.0,8.879e-05,2]
[406698647,1772097032301,-500.0,8.911e-05,2]
[406698648,1772097032309,-500.0,8.911e-05,2]
[406698649,1772097032318,-246.83523898,8.911e-05,2]
[406698650,1772097032327,-305.54055924,8.911e-05,2]
[406698651,1772097032337,-969.32856938,8.911e-05,2]
[406698652,1772097032486,-969.32856938,8.911e-05,2]
[406698653,1772097032497,-969.32856938,8.911e-05,2]
[406698654,1772097032506,-969.32856938,8.911e-05,2]
[406698655,1772097032515,-969.32856938,8.911e-05,2]
[406698656,1772097032524,-969.32856938,8.911e-05,2]
[406698657,1772097032533,-969.32856938,8.911e-05,2]
[406698658,1772097032542,-969.32856938,8.911e-05,2]
[406698659,1772097032551,-969.32856938,8.911e-05,2]
[406698660,1772097032559,-969.32856938,8.911e-05,2]
[406698661,1772097032568,-969.32856938,8.911e-05,2]
[406698662,1772097032578,-969.32856938,8.911e-05,2]
[406698663,1772097032586,-969.32856938,8.911e-05,2]
[406698664,1772097032595,-969.32856938,8.911e-05,2]
[406698665,1772097032604,-969.32856938,8.911e-05,2]
[406698666,1772097032613,-969.32856938,8.911e-05,2]
[406698667,1772097032622,-969.32856938,8.911e-05,2]
[406698668,1772097032631,-969.32856938,8.911e-05,2]
[406698669,1772097032639,-969.32856938,8.911e-05,2]
[406698670,1772097032648,-969.32856938,8.911e-05,2]
[406698671,1772097032657,-969.32856938,8.911e-05,2]
[406698672,1772097032666,-969.32856938,8.911e-05,2]
[406698673,1772097032674,-969.32856938,8.911e-05,2]
[406698674,1772097032683,-969.32856938,8.911e-05,2]
[406698675,1772097032692,-969.32856938,8.911e-05,2]
[406698676,1772097032701,-969.32856938,8.911e-05,2]
[406698677,1772097032710,-969.32856938,8.911e-05,2]
[406698678,1772097032719,-969.32856938,8.911e-05,2]
[406698679,1772097032728,-969.32856938,8.911e-05,2]
[406698680,1772097032737,-969.32856938,8.911e-05,2]
[406698681,1772097032746,-969.32856938,8.911e-05,2]
[406698682,1772097032755,-969.32856938,8.911e-05,2]
[406698683,1772097032764,-969.32856938,8.911e-05,2]
[406698684,1772097032773,-969.32856938,8.911e-05,2]
[406698685,1772097032782,-969.32856938,8.911e-05,2]
[406698686,1772097032795,-969.32856938,8.911e-05,2]
[406698687,1772097032804,-969.32856938,8.911e-05,2]
[406698688,1772097032813,-969.32856938,8.911e-05,2]
[406698689,1772097032822,-969.32856938,8.911e-05,2]
[406698690,1772097032831,-969.32856938,8.911e-05,2]
[406698691,1772097032840,-969.32856938,8.911e-05,2]
[406698692,1772097032849,-969.32856938,8.911e-05,2]
[406698693,1772097032858,-969.32856938,8.911e-05,2]
[406698694,1772097032869,-969.32856938,8.911e-05,2]
[406698695,1772097032880,-969.32856938,8.911e-05,2]
[406698696,1772097032889,-969.32856938,8.911e-05,2]
[406698697,1772097032899,-969.32856938,8.911e-05,2]
[406698698,1772097032911,-969.32856938,8.911e-05,2]
[406698699,1772097032920,-969.32856938,8.911e-05,2]
[406698700,1772097032928,-969.32856938,8.911e-05,2]
[406698701,1772097032937,-969.32856938,8.911e-05,2]
[406698702,1772097032946,-969.32856938,8.911e-05,2]
[406698703,1772097032956,-413.44223036,8.911e-05,2]
[406698704,1772097032965,-959.16931555,8.911e-05,2]
[406698705,1772097032974,-959.16931555,8.911e-05,2]
[406698706,1772097032983,-959.16931555,8.911e-05,2]
[406698707,1772097032991,-959.16931555,8.911e-05,2]
[406698708,1772097033000,-959.16931555,8.911e-05,2]
[406698709,1772097033009,-959.16931555,8.911e-05,2]
[406698710,1772097033018,-959.16931555,8.911e-05,2]
[406698711,1772097033027,-959.16931555,8.911e-05,2]
[406698712,1772097033037,-959.16931555,8.911e-05,2]
[406698713,1772097033045,-959.16931555,8.911e-05,2]
[406698714,1772097033055,-959.16931555,8.911e-05,2]
[406698715,1772097033063,-959.16931555,8.911e-05,2]
[406698716,1772097033071,-959.16931555,8.911e-05,2]
[406698717,1772097033081,-959.16931555,8.911e-05,2]
[406698718,1772097033090,-959.16931555,8.911e-05,2]
[406698719,1772097033099,-959.16931555,8.911e-05,2]
[406698720,1772097033108,-959.16931555,8.911e-05,2]
[406698721,1772097033117,-959.16931555,8.911e-05,2]
[406698722,1772097033126,-959.16931555,8.911e-05,2]
[406698723,1772097033135,-959.16931555,8.911e-05,2]
[406698724,1772097033144,-959.16931555,8.911e-05,2]
[406698725,1772097033153,-959.16931555,8.911e-05,2]
[406698726,1772097033162,-959.16931555,8.911e-05,2]
[406698727,1772097033171,-959.16931555,8.911e-05,2]
[406698728,1772097033180,-959.16931555,8.911e-05,2]
[406698729,1772097033189,-959.16931555,8.911e-05,2]
[406698730,1772097033198,-959.16931555,8.911e-05,2]
[406698731,1772097033207,-959.16931555,8.911e-05,2]
[406698732,1772097033216,-959.16931555,8.911e-05,2]
[406698733,1772097033225,-959.16931555,8.911e-05,2]
[406698734,1772097033235,-959.16931555,8.911e-05,2]
[406698735,1772097033243,-1066.4426835,8.911e-05,2]
[406698736,1772097033253,-1066.4426835,8.911e-05,2]
[406698737,1772097033262,-1066.4426835,8.911e-05,2]
[406698738,1772097033271,-1066.4426835,8.911e-05,2]
[406698739,1772097033280,-500.0,8.911e-05,2]
[406698740,1772097033289,-500.0,8.911e-05,2]
[406698741,1772097033298,-500.0,8.911e-05,2]
[406698742,1772097033307,-500.0,8.911e-05,2]
[406698743,1772097033316,-500.0,8.911e-05,2]
[406698744,1772097033325,-500.0,8.911e-05,2]
[406698745,1772097033334,-500.0,8.911e-05,2]
[406698746,1772097033343,-500.0,8.911e-05,2]
[406698747,1772097033351,-171.06205722,8.911e-05,2]
[406698748,1772097033360,-500.0,8.911e-05,2]
[406698749,1772097033369,-500.0,8.911e-05,2]
[406698750,1772097033378,-500.0,8.911e-05,2]
[406698751,1772097033387,-500.0,8.911e-05,2]
[406698752,1772097033396,-500.0,8.911e-05,2]
[406698753,1772097033405,-630.87654268,8.911e-05,2]
[406698754,1772097033414,-2165.76793918,8.911e-05,2]
[406698755,1772097033423,-315236.64446427,8.912e-05,2]
[406698756,1772097033709,-5178.11010432,8.912e-05,2]
[406698757,1772097033721,-5104.36911458,8.912e-05,2]
[406698758,1772097038042,-847.0,8.219e-05,2]
[406698762,1772097040095,-643.93639009,8.219e-05,2]
[406698769,1772097040156,-1762.71360991,8.219e-05,2]
[406698770,1772097040166,-70.60639009,8.912e-05,2]
[406698771,1772097040179,-6412.62503235,8.912e-05,2]
[406698772,1772097040466,-1558.81911971,8.912e-05,2]
[406698773,1772097040477,-281.649,8.912e-05,2]
[406698791,1772097043122,-360.31127857,8.912e-05,2]
[406698938,1772097045815,-8643.47151459,8.912e-05,2]
[406698939,1772097045974,-1901.10340853,8.912e-05,2]
[406698950,1772097076343,162.78,4.679e-05,2]
[406698951,1772097076555,150.63758301,5.104e-05,2]
[406698952,1772097076596,12.14241699,5.104e-05,2]
[406698953,1772097076743,162.78,5.529e-05,2]
[406698954,1772097077156,162.78,5.955e-05,2]
[406698955,1772097077361,162.78,6.38e-05,2]
[406698956,1772097077785,162.78,6.806e-05,2]
[406698957,1772097077829,59.63308461,7.231e-05,2]
[406698993,1772097548048,1036.32016175,8.763e-05,3]
[406699000,1772098025371,800.0,8.7e-05,3]
[406699001,1772098027465,1700.0,8.8e-05,3]
[406699002,1772098029560,2600.0,8.9e-05,3]
[406699003,1772098031656,3500.0,9e-05,3]
[406699033,1772098232146,-103.14691539,7.231e-05,2]
[406699034,1772098232156,-162.78,7.656e-05,2]
[406699035,1772098232165,-200.01423881,7.805e-05,2]
[406699036,1772098232178,-299.98576119,7.805e-05,2]
[406699037,1772098232191,-28.42368685,7.827e-05,2]
[406699038,1772098232206,-2331.02631315,7.827e-05,2]
[406699039,1772098232215,-250.0,7.954e-05,2]
[406699040,1772098232225,-300.0,8.035e-05,2]
[406699041,1772098232235,-217.0,8.035e-05,2]
[406699042,1772098232246,-1200.0,8.035e-05,2]
[406699043,1772098232259,-9773.11,8.036e-05,2]
[406699044,1772098232268,-162.78,8.082e-05,2]
[406699045,1772098232277,-176.566046,8.219e-05,2]
[406699046,1772098232286,-228.274873,8.219e-05,2]
[406699047,1772098232295,-150.661416,8.228e-05,2]
[406699048,1772098232305,-747.0,8.373e-05,2]
[406699049,1772098232314,-150.0,8.499e-05,2]
[406699050,1772098232491,-1529.045652,8.5e-05,2]
[406699051,1772098232501,-2893.19268298,8.5e-05,2]
[406699052,1772098232511,-3990.46975614,8.5e-05,2]
[406699053,1772098232520,-1177.15387643,8.5e-05,2]
[406699054,1772098232529,-2193.21082052,8.5e-05,2]
[406699055,1772098232540,-3010.49514867,8.5e-05,2]
[406699056,1772098232549,-162.78,8.507e-05,2]
[406699057,1772098232558,-61183.06433111,8.562e-05,2]
[406699058,1772098232569,-341558.24951963,8.562e-05,2]
[406699059,1772098232580,-1254.41808677,8.562e-05,2]
[406699062,1772098238111,-11601.5939055,8.562e-05,2]
[406699063,1772098238123,-11450.35032955,8.562e-05,2]
[406699064,1772098238165,-571517.25665883,8.562e-05,2]
[406699065,1772098238178,-363.98,8.562e-05,2]
[406699066,1772098238192,-3784.59443519,8.562e-05,2]
[406699067,1772098238220,-4292.20382836,8.562e-05,2]
[406699068,1772098238233,-14161.19775467,8.562e-05,2]
[406699069,1772098238246,-19133.84740202,8.562e-05,2]
[406699070,1772098238276,-2266.50399619,8.562e-05,2]
[406699202,1772098240290,-281741.61623364,8.562e-05,2]
[406699205,1772098240302,-7557.91993022,8.562e-05,2]
[406699210,1772098240343,-393.56774581,8.562e-05,2]
[406699234,1772098240559,-768.71294345,8.562e-05,2]
[406699236,1772098240570,-429.04865147,8.562e-05,2]
[406699238,1772098240582,-364.71743994,8.562e-05,2]
[406699243,1772098240616,-12139.83901912,8.562e-05,2]
[406699245,1772098240627,-1117.08,8.562e-05,2]
[406699362,1772098243307,-1027.23724345,8.562e-05,2]
[406699363,1772098243415,-8375.6757443,8.562e-05,2]
[406699364,1772098243470,-851.7327853,8.562e-05,2]
[406699418,1772098245970,-183621.32096531,8.562e-05,2]
[406699419,1772098246186,-5570.45453968,8.562e-05,2]
[406699420,1772098246244,-2852.5634555,8.562e-05,2]
[406699442,1772098669530,1036.32016175,8.905e-05,3]
[406699507,1772099239023,400.0,9e-05,3]
[406699536,1772099432340,-1411.19,7.602e-05,2]
[406699537,1772099432351,-1200.0,7.669e-05,2]
[406699538,1772099432360,-300.0,7.67e-05,2]
[406699539,1772099432370,-1200.0,7.67e-05,2]
[406699540,1772099432380,-29748.84,7.671e-05,2]
[406699541,1772099432389,-1500.0,7.83e-05,2]
[406699542,1772099432398,-200.0,7.859e-05,2]
[406699543,1772099432408,-383.64,7.946e-05,2]
[406699544,1772099432418,-271.0,8.252e-05,2]
[406699545,1772099432428,-153.09966258,8.252e-05,2]
[406699546,1772099432437,-150.0,8.252e-05,2]
[406699547,1772099432447,-150.0,8.252e-05,2]
[406699548,1772099432457,-281.0,8.264e-05,2]
[406699549,1772099432466,-335.92107206,8.269e-05,2]
[406699550,1772099432475,-150.0,8.306e-05,2]
[406699551,1772099432485,-150.0,8.307e-05,2]
[406699552,1772099432495,-150.0,8.307e-05,2]
[406699553,1772099432508,-150.0,8.307e-05,2]
[406699554,1772099432517,-150.0,8.307e-05,2]
[406699555,1772099432527,-150.0,8.307e-05,2]
[406699556,1772099432536,-150.0,8.307e-05,2]
[406699557,1772099432546,-150.0,8.307e-05,2]
[406699558,1772099432555,-150.0,8.307e-05,2]
[406699560,1772099432565,-150.0,8.307e-05,2]
[406699562,1772099432574,-150.0,8.307e-05,2]
[406699564,1772099432583,-150.0,8.307e-05,2]
[406699566,1772099432592,-150.0,8.307e-05,2]
[406699568,1772099432602,-150.0,8.307e-05,2]
[406699569,1772099432612,-150.0,8.307e-05,2]
[406699571,1772099432622,-150.0,8.307e-05,2]
[406699572,1772099432631,-150.0,8.307e-05,2]
[406699573,1772099432640,-150.0,8.307e-05,2]
[406699574,1772099432649,-150.0,8.307e-05,2]
[406699575,1772099432658,-150.0,8.307e-05,2]
[406699576,1772099432667,-150.0,8.307e-05,2]
[406699577,1772099432676,-150.0,8.307e-05,2]
[406699578,1772099432685,-150.0,8.307e-05,2]
[406699579,1772099432695,-150.0,8.307e-05,2]
[406699580,1772099432703,-250.0,8.347e-05,2]
[406699581,1772099432713,-195.0,8.362e-05,2]
[406699582,1772099432722,-195.0,8.362e-05,2]
[406699583,1772099432731,-195.0,8.362e-05,2]
[406699584,1772099432739,-195.0,8.362e-05,2]
[406699585,1772099432749,-250.0,8.362e-05,2]